{"text_format":"1","workbook":"xlsx","n_sheets":1,"sheets":["count"],"not_rendered":{"charts":0,"images":0,"macros":1,"external_links":0,"defined_names":0,"comments":0,"pivot_tables":0},"unopened":[],"bounds":{"document_bytes":16777216,"sheet_cells":100000,"rows_first":2000,"rows_last":500,"rows_between":2000,"halvings":0,"cell_chars":16384,"cell_head_chars":4096},"cells_cut":0,"cells_raw":0,"read":"whole","date_system":"1900"}

{"sheet":"count","index":0,"n_rows":55,"n_cols":14,"rows_kept":55,"cut":false,"hidden":false,"merged":[[3,1,3,3],[44,2,47,2],[29,1,32,1],[4,1,7,1],[8,1,16,1],[13,2,16,2],[17,2,21,2],[22,2,26,2],[4,2,4,3],[5,2,5,3],[6,2,6,3],[34,2,37,2],[38,2,41,2],[8,2,12,2],[34,1,41,1],[7,4,7,7],[44,1,53,1],[15,9,16,9],[17,9,22,9],[50,2,53,2],[17,1,21,1],[22,1,26,1]]}
["保有個人情報開示請求　収入印紙・切手代等計算シート"]
[]
["請求する文書にチェックを入れてください。黄色網掛け部分に必要な収入印紙代、封筒、切手代が計算され、表示されます。"]
[null,null,null,null,"令和４年","令和５年","令和６年","令和７年",null,"収入印紙",null,{"$f":"IF(L10<>\"ERROR\",(COUNTIFS(E33:H33,\"<>0\")+COUNTIFS(E43:H43,\"<>0\")+COUNTIFS(E49:H49,\"<>0\")+COUNTIFS(E55:H55,\"<>0\"))*300,\"ERROR\")","v":0}]
[null,"⑴受験者\n管理ファイル","第Ⅰ回",null,false,false,false,false,null,"封筒",null,{"$f":"IF(L10<>\"ERROR\",IF(L7>1,IF(SUM(I35:I54)>0,\"角形２号\",IF(M7>=45,\"角形２号\",\"長形３号\")),\"無\"),\"ERROR\")","v":"無"}]
[null,null,"第Ⅱ回",null,false,false,false,false,null,"切手代",{"$f":"IF(L10<>\"ERROR\",IF(L7>1,IF(AND(M7<=L16,L5=\"長形３号\"),M16,IF(AND(M7<=L17,L5=\"長形３号\"),M17,IF(M7<=L18,M18,IF(M7<=L19,M19,IF(M7<=L20,M20,IF(M7<=L21,M21,IF(M7<=L22,M22,M23))))))),0),\"ERROR\")","v":0},{"$f":"IF(K6=\"ERROR\",\"ERROR\",K6+IF(AND(K6>1,M6=TRUE),350))","v":0},false,"簡易書留"]
[null,null,"論文式",null,false,false,false,false,null,"枚数","合計",{"$f":"SUM(L8:L11)","v":0},{"$f":"L7*4","v":0}]
[null,null,null,null,null,null,null,null,null,null,"通知書",{"$f":"IF(SUM(L9:L11)>0,1,0)","v":0}]
[null,"⑵論文式試験採点前答案","必修科目","必修全選択",false,false,false,false,null,null,"管理ファイル",{"$f":"I33","v":0}]
[null,null,null,"会計学",false,false,false,false,null,null,"採点前答案",{"$f":"IF(COUNTIFS(E43:H43,\"ERROR\")>=1,\"ERROR\",SUM(I35:I42))","v":0}]
[null,null,null,"監査論",false,false,false,false,null,null,"マークシート",{"$f":"SUM(I45:I54)","v":0}]
[null,null,null,"企業法",false,false,false,false,null,"※同一年で選択科目を複数選ぶとERRORとなります。"]
[null,null,null,"租税法",false,false,false,false]
[null,null,"選択科目","経営学",false,false,false,false]
[null,null,null,"経済学",false,false,false,false,null,null,"gまで","封筒分マイナス","料金"]
[null,null,null,"民法",false,false,false,false,null,"定形",25,{"$f":"K16-5","v":20},110]
[null,null,null,"統計学",false,false,false,false,null,null,50,{"$f":"K17-5","v":45},110,"11枚まで"]
[null,"⑶短答式試験マークシート","第Ⅰ回","全選択",false,false,false,false,null,"定形外",50,{"$f":"K18-15","v":35},140]
[null,null,null,"財務会計論",false,false,false,false,null,null,100,{"$f":"K19-15","v":85},180,"12枚以上"]
[null,null,null,"管理会計論",false,false,false,false,null,null,150,135,270]
[null,null,null,"監査論",false,false,false,false,null,null,250,235,320]
[null,null,null,"企業法",false,false,false,false,null,null,500,485,510]
[null,"⑷短答式試験マークシート","第Ⅱ回","全選択",false,false,false,false,null,null,1000,985,750]
[null,null,null,"財務会計論",false,false,false,false]
[null,null,null,"管理会計論",false,false,false,false]
[null,null,null,"監査論",false,false,false,false]
[null,null,null,"企業法",false,false,false,false]
[]
[null,null,null,null,false]
[null,"受験者\n管理\nファイル",null,"第Ⅰ回"]
[null,null,null,"第Ⅱ回"]
[null,null,null,"論文式"]
[null,null,null,"合計",{"$f":"IF(AND((E5=FALSE),(E6=FALSE),(E7=TRUE)),2,(COUNTIF(E5:E6,TRUE)*2))","v":0},{"$f":"IF(AND((F5=FALSE),(F6=FALSE),(F7=TRUE)),2,(COUNTIF(F5:F6,TRUE)*2))","v":0},{"$f":"IF(AND((G5=FALSE),(G6=FALSE),(G7=TRUE)),2,(COUNTIF(G5:G6,TRUE)*2))","v":0},{"$f":"IF(AND((H5=FALSE),(H6=FALSE),(H7=TRUE)),2,(COUNTIF(H5:H6,TRUE)*2))","v":0},{"$f":"SUM(E33:H33)","v":0}]
[]
[null,"論文式試験採点前答案","必修科目","会計学",null,null,null,null,{"$f":"(COUNTIF(E10:G10,TRUE)*10+COUNTIF(H10:H10,TRUE)*11)","v":0}]
[null,null,null,"監査論",null,null,null,null,{"$f":"(COUNTIF(E11:H11,TRUE))*4","v":0}]
[null,null,null,"企業法",null,null,null,null,{"$f":"(COUNTIF(E12:H12,TRUE))*2","v":0}]
[null,null,null,"租税法",null,null,null,null,{"$f":"(COUNTIF(E13:H13,TRUE))*6","v":0}]
[null,null,"選択科目","経営学",null,null,null,null,{"$f":"(COUNTIF(E14:G14,TRUE)*4+COUNTIF(H14:H14,TRUE)*6)","v":0}]
[null,null,null,"経済学",null,null,null,null,{"$f":"(COUNTIF(E15:H15,TRUE))*4","v":0}]
[null,null,null,"民法",null,null,null,null,{"$f":"(COUNTIF(E16:H16,TRUE)*4)","v":0}]
[null,null,null,"統計学",null,null,null,null,{"$f":"(COUNTIF(E17:E17,TRUE)*8+COUNTIF(F17:F17,TRUE)*6+COUNTIF(G17:G17,TRUE)*8+COUNTIF(H17:H17,TRUE)*6)","v":0}]
[null,null,null,"合計",{"$f":"IF(COUNTIF(E14:E17,TRUE)>1,\"ERROR\",COUNTIF(E10:E17,TRUE))","v":0},{"$f":"IF(COUNTIF(F14:F17,TRUE)>1,\"ERROR\",COUNTIF(F10:F17,TRUE))","v":0},0,0,{"$f":"IF(COUNTIF(I39:I42,TRUE)>1,\"ERROR\",COUNTIF(I35:I42,TRUE))","v":0}]
[]
[null,"短答式試験マークシート","第Ⅰ回","財務会計論",null,null,null,null,{"$f":"(COUNTIF(E19:H19,TRUE))*1","v":0}]
[null,null,null,"管理会計論",null,null,null,null,{"$f":"(COUNTIF(E20:H20,TRUE))*1","v":0}]
[null,null,null,"監査論",null,null,null,null,0]
[null,null,null,"企業法",null,null,null,null,0]
[null,null,null,"合計",{"$f":"(COUNTIF(E19:E22,TRUE))","v":0},{"$f":"(COUNTIF(F19:F22,TRUE))","v":0},{"$f":"(COUNTIF(G19:G22,TRUE))","v":0},0,{"$f":"(COUNTIF(E49:H49,TRUE))*1","v":0}]
[]
[null,null,"第Ⅱ回","財務会計論",null,null,null,null,{"$f":"(COUNTIF(E24:H24,TRUE))*1","v":0}]
[null,null,null,"管理会計論",null,null,null,null,{"$f":"(COUNTIF(E25:H25,TRUE))*1","v":0}]
[null,null,null,"監査論",null,null,null,null,0]
[null,null,null,"企業法",null,null,null,null,0]
[null,null,null,"合計",{"$f":"(COUNTIF(E24:E27,TRUE))","v":0},{"$f":"(COUNTIF(F24:F27,TRUE))","v":0},0,0,{"$f":"(COUNTIF(E55:H55,TRUE))*1","v":0}]